bitfinex-derivatives/quotes_BNBF0:USTF0_20241231
["timestamp","ask_amount","ask_price","bid_price","bid_amount"]
[1735662839051,0.25929242,710.07,708.99,1.04936077]
[1735662839346,1.47129288,710.14,708.93,1.04936077]
[1735662839347,1.04413296,710.04,708.93,1.04936077]
[1735662839547,0.25929242,710.03,708.93,1.04936077]
[1735662840451,0.25929943,710.02,708.93,1.04936077]
[1735662840651,0.25929943,710.01,708.93,1.04936077]
[1735662840851,0.25929943,710.0,708.93,1.04936077]
[1735662841056,0.25929943,709.99,708.93,1.04936077]
[1735662841249,0.25929943,709.98,708.93,1.04936077]
[1735662841456,1.04413296,710.04,708.93,1.04936077]
[1735662841753,0.25929224,710.03,708.93,1.04936077]
[1735662842153,1.04413296,710.04,708.93,1.04936077]
[1735662842353,0.25929359,710.03,708.93,1.04936077]
[1735662843055,1.04413296,710.04,708.93,1.04936077]
[1735662843558,0.25928388,710.03,708.93,1.04936077]
[1735662844356,1.04413296,710.04,708.93,1.04936077]
[1735662853059,1.04413296,710.04,708.94,0.28211132]
[1735662856265,0.28159495,710.24,709.08,1.04936077]
[1735662856563,0.25920423,710.23,709.08,1.04936077]
[1735662857264,0.28159495,710.24,709.08,1.04936077]
[1735662857658,0.28159495,710.24,709.13,1.04936077]
[1735662858868,0.28159495,710.24,709.15,1.04936077]
[1735662859967,0.28159495,710.24,709.12,1.04936077]
[1735662861268,0.28159495,710.24,709.03,1.04936077]
[1735662862767,0.28159495,710.24,708.98,1.04936077]
[1735662863568,0.28159495,710.24,709.06,1.04936077]
[1735662866365,0.28159495,710.24,708.97,1.04936077]
[1735662867271,0.28159495,710.24,709.0,1.04936077]
[1735662868171,0.28159495,710.24,708.99,1.04936077]
[1735662869372,0.28159495,710.24,709.15,1.04936077]
[1735662870569,0.28159495,710.24,709.17,1.04936077]
[1735662871569,0.28159495,710.24,709.18,1.04936077]
[1735662872371,0.28159495,710.24,709.23,1.04936077]
[1735662873668,0.28159495,710.24,709.29,1.04936077]
[1735662873866,1.47086794,710.39,709.29,1.04936077]
[1735662874469,1.47086794,710.39,709.21,1.04936077]
[1735662875673,1.47086794,710.39,709.14,1.04936077]
[1735662877775,1.47086794,710.39,709.15,1.04936077]
[1735662878370,1.47086794,710.39,709.16,0.2820238]
[1735662884981,1.47086794,710.39,709.17,1.04936077]
[1735662885180,1.47086794,710.39,709.18,0.28201584]
[1735662885777,1.47086794,710.39,709.29,1.04936077]
[1735662887081,1.47086794,710.39,709.32,1.04936077]
[1735662888178,1.47086794,710.39,709.33,1.04936077]
[1735662888979,1.47086794,710.39,709.29,1.04936077]
[1735662889882,1.47086794,710.39,709.34,1.04936077]
[1735662891081,1.47086794,710.39,709.23,1.04936077]
[1735662892083,1.47086794,710.39,709.24,1.04936077]
[1735662893284,1.47086794,710.39,709.18,0.28201584]
[1735662893285,1.47086794,710.39,709.25,1.04936077]
[1735662896687,1.47086794,710.39,709.27,1.04936077]
[1735662897987,1.47086794,710.39,709.29,1.04936077]
[1735662899084,1.47086794,710.39,709.31,1.04936077]
[1735662900085,1.47086794,710.39,709.18,0.28201584]
[1735662900086,1.47086794,710.39,709.4,1.04936077]
[1735662901685,1.47086794,710.39,709.42,1.04936077]
[1735662902588,1.47086794,710.39,709.45,1.04936077]
[1735662902882,1.04413296,710.46,709.45,1.04936077]
[1735662903688,1.47051056,710.54,709.18,0.28201584]
[1735662903689,1.47051056,710.54,709.33,1.04936077]
[1735662904688,1.47051056,710.54,709.18,0.28201584]
[1735662904689,1.47051056,710.54,709.36,1.04936077]
[1735662905290,1.04413296,710.87,709.36,1.04936077]
[1735662905490,1.47037594,710.66,709.36,1.04936077]
[1735662905693,1.04413296,710.75,709.59,1.04936077]
[1735662905884,1.47029311,710.66,709.59,1.04936077]
[1735662906387,1.04413296,710.75,709.59,1.04936077]
[1735662907391,1.4701223,710.74,709.56,1.04936077]
[1735662908686,1.4701223,710.74,709.54,1.04936077]
[1735662909584,0.25900101,710.73,709.55,1.04936077]
[1735662909986,1.4701223,710.74,709.55,1.04936077]
[1735662910295,0.25899426,710.73,709.69,1.04936077]
[1735662910493,1.4701223,710.74,709.69,1.04936077]
[1735662910886,0.25899481,710.73,709.69,1.04936077]
[1735662911195,1.4701223,710.74,709.69,1.04936077]
[1735662911394,1.4701223,710.74,709.66,1.04936077]
[1735662912394,0.25904977,710.73,709.66,1.04936077]
[1735662912594,0.25904977,710.73,709.22,1.25923293]
[1735662912595,0.25904977,710.73,709.34,1.04936077]
[1735662912795,1.4701223,710.74,709.34,1.04936077]
[1735662913391,0.25904375,710.73,709.43,1.04936077]
[1735662913695,1.4701223,710.74,709.43,1.04936077]
[1735662913996,0.25904356,710.73,709.43,1.04936077]
[1735662914492,1.4701223,710.74,709.41,1.04936077]
[1735662914688,0.25903159,710.73,709.41,1.04936077]
[1735662915593,0.25903159,710.73,709.44,1.04936077]
[1735662916389,0.25903159,710.73,709.45,0.28190852]
[1735662916891,1.4701223,710.74,709.51,1.04936077]
[1735662917089,1.4701223,710.74,709.52,0.2818807]
[1735662921591,1.4700395,710.81,709.52,0.2818807]
[1735662922892,1.04413296,711.2,709.52,0.2818807]
[1735662923199,1.46991014,710.9,709.52,0.2818807]
[1735662923398,0.2812188,711.19,709.52,0.2818807]
[1735662923598,1.46987909,710.92,709.52,0.2818807]
[1735662923798,0.2812188,711.19,709.52,0.2818807]
[1735662925298,1.46950668,711.18,709.52,0.2818807]
[1735662925692,0.25891011,711.17,709.52,0.2818807]
[1735662927494,0.25899112,711.16,709.52,0.2818807]
[1735662927694,0.25899112,711.15,709.52,0.2818807]
[1735662927901,0.25899112,711.14,709.52,0.2818807]
[1735662928199,0.25899112,711.13,709.52,0.2818807]
[1735662928502,0.25899112,711.12,709.52,0.2818807]
[1735662928695,1.46950668,711.18,709.52,0.2818807]
[1735662928696,0.25899112,711.11,709.52,0.2818807]
[1735662928899,0.25899112,711.1,709.52,0.2818807]
[1735662929099,0.25899112,711.09,709.52,0.2818807]
[1735662929300,0.25899112,711.08,709.52,0.2818807]
[1735662929501,0.25899112,711.07,709.52,0.2818807]
[1735662929702,0.25899112,711.06,709.52,0.2818807]
[1735662930002,0.25899112,711.05,709.52,0.2818807]
[1735662930201,0.25905211,711.04,709.52,0.2818807]
[1735662930401,0.25905211,711.03,709.52,0.2818807]
[1735662930602,0.25905211,711.02,709.52,0.2818807]
[1735662930799,0.25905211,711.01,709.52,0.2818807]
[1735662930999,0.25905211,711.0,709.52,0.2818807]
[1735662931205,0.25905211,710.99,709.52,0.2818807]
[1735662931497,1.04413296,710.97,709.52,0.2818807]
[1735662931701,0.25905211,710.96,709.52,0.2818807]
[1735662931894,0.25905211,710.95,709.52,0.2818807]
[1735662932203,0.25905211,710.94,709.52,0.2818807]
[1735662932496,1.04413296,710.73,709.52,0.2818807]
[1735662932700,0.25905211,710.72,709.52,0.2818807]
[1735662933700,0.25905211,710.71,709.52,0.2818807]
[1735662933897,0.25905211,710.7,709.52,0.2818807]
[1735662934103,0.25905211,710.69,709.52,0.2818807]
[1735662934298,0.25905211,710.68,709.52,0.2818807]
[1735662934502,0.25905211,710.67,709.52,0.2818807]
[1735662934704,1.04413296,710.82,709.52,0.2818807]
[1735662934705,0.25905211,710.66,709.52,0.2818807]
[1735662934899,0.25905211,710.65,709.52,0.2818807]
[1735662935105,0.25905211,710.64,709.52,0.2818807]
[1735662935305,0.25913894,710.63,709.52,0.2818807]
[1735662935902,1.47068146,710.64,709.52,0.2818807]
[1735662936103,0.25913151,710.63,709.52,0.2818807]
[1735662936707,0.25914016,710.62,709.52,0.2818807]
[1735662936907,0.25914016,710.61,709.52,0.2818807]
[1735662937207,0.25914016,710.6,709.52,0.2818807]
[1735662937402,0.25914016,710.59,709.52,0.2818807]
[1735662937608,0.25914016,710.58,709.52,0.2818807]
[1735662937808,0.25914016,710.57,709.52,0.2818807]
[1735662938001,0.25913077,710.56,709.52,0.2818807]
[1735662938207,0.25913077,710.55,709.52,0.2818807]
[1735662938408,1.47068146,710.64,709.52,0.2818807]
[1735662938409,0.25913077,710.54,709.52,0.2818807]
[1735662938607,0.25913077,710.53,709.52,0.2818807]
[1735662938802,0.25913077,710.52,709.52,0.2818807]
[1735662939006,0.25913077,710.51,709.52,0.2818807]
[1735662939201,0.25913077,710.5,709.0,1.04936077]
[1735662939400,0.25913077,710.49,709.0,1.04936077]
[1735662939602,0.25913077,710.48,709.0,1.04936077]
[1735662939809,0.25913077,710.47,709.0,1.04936077]
[1735662940007,0.25913077,710.63,709.0,1.04936077]
[1735662940207,0.25913077,710.63,708.91,1.04936077]
[1735662940406,0.25916363,710.62,708.91,1.04936077]
[1735662940602,1.47068146,710.64,708.92,0.28211928]
[1735662940603,0.25916363,710.61,708.92,0.28211928]
[1735662940802,0.25916363,710.6,708.92,0.28211928]
[1735662941003,0.25916363,710.59,708.92,0.28211928]
[1735662941204,0.25916363,710.58,708.92,0.28211928]
[1735662941402,0.25916363,710.57,708.92,0.28211928]
[1735662941605,0.25916363,710.56,708.92,0.28211928]
[1735662941807,0.25916363,710.55,708.92,0.28211928]
[1735662942008,0.25916363,710.54,708.92,0.28211928]
[1735662942209,0.25916363,710.53,708.92,0.28211928]
[1735662942407,0.25916363,710.52,708.92,0.28211928]
[1735662942604,0.25916363,710.51,708.92,1.33148005]
[1735662942807,0.25916363,710.5,708.92,1.33148005]
[1735662943010,0.25914688,710.49,708.92,1.33148005]
[1735662943308,1.47068146,710.64,708.92,1.33148005]
[1735662943309,0.25914688,710.48,708.92,1.33148005]
[1735662943503,0.25914688,710.47,708.92,1.33148005]
[1735662943710,0.25914375,710.46,708.92,1.33148005]
[1735662944008,0.25914375,710.45,708.92,1.33148005]
[1735662944208,0.25914375,710.44,708.92,1.33148005]
[1735662944409,0.25914375,710.43,708.92,1.33148005]
[1735662944710,0.25914375,710.42,708.92,1.33148005]
[1735662945011,0.25914375,710.41,708.92,0.28211928]
[1735662945208,0.25914375,710.4,708.92,0.28211928]
[1735662945409,0.25914375,710.39,708.92,0.28211928]
[1735662945708,0.25914375,710.38,708.92,0.28211928]
[1735662945902,1.47088866,710.4,708.92,0.28211928]
[1735662945903,0.25914375,710.37,708.92,0.28211928]
[1735662946108,0.25914375,710.36,708.92,0.28211928]
[1735662946307,1.47088866,710.4,708.92,0.28211928]
[1735662946505,0.25914451,710.39,708.92,0.28211928]
[1735662948311,0.25915354,710.38,708.92,0.28211928]
[1735662948612,0.25915354,710.37,708.92,0.28211928]
[1735662948907,1.47088866,710.4,708.92,0.28211928]
[1735662948908,0.25915354,710.36,708.92,0.28211928]
[1735662949113,1.47088866,710.4,708.92,0.28211928]
[1735662954512,1.47088866,710.4,708.96,1.04936077]
[1735662955110,1.47088866,710.4,708.97,0.28209938]
[1735662961211,1.47088866,710.4,709.06,1.04936077]
[1735662961618,1.04413296,710.93,709.06,1.04936077]
[1735662961915,1.47089384,710.39,709.06,1.04936077]
[1735662962121,0.2812188,711.19,708.97,0.28209938]
[1735662962122,1.04413296,710.86,709.16,1.04936077]
[1735662962324,1.47089902,710.38,709.16,1.04936077]
[1735662962518,1.04413296,710.86,709.16,1.04936077]
[1735662962830,0.25912496,710.85,709.16,1.04936077]
[1735662963020,1.04413296,710.78,709.24,1.04936077]
[1735662963421,0.25913482,710.77,709.24,1.04936077]
[1735662963922,1.04413296,710.68,709.3,1.04936077]
[1735662964115,0.25913482,710.67,709.3,1.04936077]
[1735662964724,1.04413296,710.65,709.42,1.04936077]
[1735662965022,0.25913482,710.64,709.42,1.04936077]
[1735662965625,1.04413296,710.55,709.62,1.04936077]
[1735662965819,0.25909349,710.54,709.62,1.04936077]
[1735662966519,1.04413296,710.55,709.62,1.04936077]
[1735662966719,0.25909474,710.54,709.62,1.04936077]
[1735662966925,1.04413296,710.53,709.59,1.04936077]
[1735662967122,0.25909474,710.52,709.59,1.04936077]
[1735662968128,1.04413296,710.49,709.53,1.04936077]
[1735662969329,1.04413296,710.63,709.52,1.04936077]
[1735662969529,0.25909757,710.62,709.52,1.04936077]
[1735662970730,1.04413296,710.49,709.43,1.04936077]
[1735662972031,1.04413296,710.62,709.39,1.04936077]
[1735662972227,0.259106,710.61,709.39,1.04936077]
[1735662973431,0.259106,710.61,708.97,0.28209938]
[1735662973432,0.259106,710.61,709.41,1.04936077]
[1735662973629,0.25909683,710.6,709.41,1.04936077]
[1735662973825,0.25909683,710.59,709.41,1.04936077]
[1735662974025,0.25909683,710.58,709.41,1.04936077]
[1735662974230,1.47052092,710.59,709.41,1.04936077]
[1735662974434,1.30324055,710.58,709.41,1.04936077]
[1735662974631,0.25910759,710.57,709.41,1.04936077]
[1735662975132,1.04413296,710.58,709.41,1.04936077]
[1735662975434,1.47052092,710.59,709.44,1.04936077]
[1735662976933,1.47052092,710.59,709.51,1.04936077]
[1735662978133,1.47052092,710.59,709.49,1.04936077]
[1735662978134,1.46209713,710.59,709.49,1.04936077]
[1735662978329,1.04413296,710.74,709.49,1.04936077]
[1735662978529,1.47019993,710.72,709.49,1.04936077]
[1735662979234,1.47019993,710.72,709.62,1.04936077]
[1735662980538,1.47019993,710.72,709.64,1.04936077]
[1735662981541,1.47019993,710.72,709.59,1.04936077]
[1735662982941,1.47019993,710.72,709.62,1.04936077]
[1735662984142,1.47019993,710.72,709.25,1.04936077]
[1735662984645,1.47019993,710.72,709.26,0.28198403]
[1735662985345,1.47019993,710.72,709.28,1.04936077]
[1735662986143,1.47019993,710.72,709.29,0.28197211]
[1735662986338,1.47019993,710.72,709.46,1.04936077]
[1735662987240,1.47019993,710.72,709.41,1.04936077]
[1735662988347,1.47019993,710.72,709.4,1.04936077]
[1735662989037,1.47019993,710.72,709.41,0.28192441]
[1735662989243,1.47019993,710.72,709.42,1.04936077]
[1735662989438,1.47019993,710.72,709.43,0.28191646]
[1735662990242,0.25900444,710.71,709.43,0.28191646]
[1735662990445,1.47019993,710.72,709.43,0.28191646]
[1735662990642,0.25901079,710.71,709.43,0.28191646]
[1735662990841,0.25901079,710.71,709.51,1.04936077]
[1735662991045,1.47019993,710.72,709.51,1.04936077]
[1735662992046,1.47019993,710.72,709.55,1.04936077]
[1735662993048,1.47019993,710.72,709.56,1.04936077]
[1735662994150,1.47019993,710.72,709.48,1.04936077]
[1735662994448,1.46998258,710.83,709.48,1.04936077]
[1735662995350,1.46998258,710.83,709.45,1.04936077]
[1735662996245,0.2812188,711.19,709.52,1.04936077]
[1735662996550,1.46987909,710.94,709.52,1.04936077]
[1735662996748,0.2812188,711.19,709.52,1.04936077]
[1735662996948,1.72848403,711.18,709.71,1.04936077]
[1735662997147,0.25892564,711.17,709.71,1.04936077]
[1735662997544,1.46955839,711.18,709.71,1.04936077]
[1735662997749,0.25889785,711.17,709.71,1.04936077]
[1735662998049,0.25889785,711.17,709.84,1.04936077]
[1735662999250,0.25889785,711.17,709.82,1.04936077]
[1735663000645,0.25889785,711.17,709.8,1.04936077]
[1735663002051,0.25889599,711.16,709.75,1.04936077]
[1735663002248,0.25889599,711.15,709.75,1.04936077]
[1735663002445,0.25889599,711.14,709.75,1.04936077]
[1735663002647,0.25889599,711.13,709.75,1.04936077]
[1735663002844,0.25889599,711.12,709.75,1.04936077]
[1735663003047,0.2589007,711.11,709.75,1.04936077]
[1735663003250,0.2589007,711.1,709.73,1.04936077]
[1735663003546,0.2589007,711.09,709.73,1.04936077]
[1735663003751,0.2589007,711.08,709.73,1.04936077]
[1735663003953,0.2589007,711.07,709.73,1.04936077]
[1735663004246,0.2812188,711.19,709.54,2.51019655]
[1735663004247,0.2589007,711.06,709.72,1.04936077]
[1735663004452,0.2589007,711.05,709.72,1.04936077]
[1735663004645,0.25889409,711.04,709.72,1.04936077]
[1735663004849,0.25889409,711.03,709.72,1.04936077]
[1735663005046,0.25889409,711.02,709.72,1.04936077]
[1735663005250,0.25889409,711.01,709.72,1.04936077]
[1735663005445,0.25889514,711.0,709.72,1.04936077]
[1735663005649,0.2812188,711.19,709.72,1.04936077]
[1735663005650,0.25889514,710.99,709.72,1.04936077]
[1735663005851,0.25889514,710.98,709.72,1.04936077]
[1735663006148,0.25889514,710.97,709.72,1.04936077]
[1735663006349,0.25889514,710.96,709.72,1.04936077]
[1735663006549,0.2812188,711.19,709.72,1.04936077]
[1735663006749,0.25885922,711.18,709.72,1.04936077]
[1735663007147,1.46936707,711.17,709.72,1.04936077]
[1735663007346,0.25884475,711.16,709.72,1.04936077]
[1735663007550,0.25884475,711.16,709.78,1.04936077]
[1735663008650,0.25884475,711.16,709.77,1.04936077]
[1735663009648,0.25884475,711.16,709.8,1.04936077]
[1735663009852,1.46936707,711.17,709.8,1.04936077]
[1735663010052,0.25888036,711.16,709.8,1.04936077]
[1735663010453,0.25888036,711.16,705.71,2.90965524]
[1735663010454,0.25888036,711.16,709.71,1.04936077]
[1735663012151,0.25888036,711.16,709.65,1.04936077]
[1735663012356,0.25887948,711.15,709.65,1.04936077]
[1735663012551,0.25887948,711.16,709.65,1.04936077]
[1735663012750,0.25887948,711.15,709.71,1.04936077]
[1735663012948,0.25887948,711.14,709.71,1.04936077]
[1735663013150,0.25888438,711.13,709.71,1.04936077]
[1735663013355,0.25888438,711.12,709.71,1.04936077]
[1735663013554,0.25888438,711.11,709.71,1.04936077]
[1735663013755,0.25888438,711.1,709.7,1.04936077]
[1735663013950,1.46936707,711.17,709.7,1.04936077]
[1735663013951,0.25888438,711.09,709.7,1.04936077]
[1735663014154,0.25888438,711.08,709.7,1.04936077]
[1735663014358,0.25888438,711.07,709.7,1.04936077]
[1735663014658,1.46936707,711.17,709.46,2.70722315]
[1735663014659,0.25888438,711.06,709.73,1.04936077]
[1735663014852,0.25888438,711.05,709.73,1.04936077]
[1735663015055,1.46936707,711.17,709.73,1.04936077]
[1735663015251,0.25888937,711.16,709.73,1.04936077]
[1735663015653,0.25888937,711.16,709.74,1.04936077]
[1735663016757,0.25888937,711.16,709.67,1.04936077]
[1735663017756,0.25889086,711.15,709.67,1.04936077]
[1735663017954,1.46936707,711.17,709.65,1.04936077]
[1735663018149,0.2588915,711.16,709.65,1.04936077]
[1735663019160,0.2588915,711.16,709.62,1.04936077]
[1735663020160,1.46936707,711.17,709.62,1.04936077]
[1735663020359,1.46936707,711.17,709.43,0.28191646]
[1735663020360,0.25892716,711.16,709.57,1.04936077]
[1735663020960,0.25893984,711.15,709.57,1.04936077]
[1735663021156,0.25893984,711.16,709.57,1.04936077]
[1735663021361,1.46936707,711.17,709.43,0.28191646]
[1735663021362,0.25893984,711.15,709.55,1.04936077]
[1735663021562,0.25893984,711.14,709.55,1.04936077]
[1735663021762,0.25893984,711.13,709.55,1.04936077]
[1735663021961,0.25893984,711.12,709.55,1.04936077]
[1735663022163,0.25896425,711.11,709.55,1.04936077]
[1735663022362,0.25896425,711.1,709.55,1.04936077]
[1735663022665,0.25896425,711.09,709.55,1.04936077]
[1735663022859,0.25896425,711.08,709.55,1.04936077]
[1735663023057,0.25896425,711.07,709.55,1.04936077]
[1735663023259,0.25896425,711.06,709.55,1.04936077]
[1735663023460,0.25896425,711.05,709.55,1.04936077]
[1735663023660,0.25896425,711.04,709.55,1.04936077]
[1735663023863,0.25896425,711.03,709.55,1.04936077]
[1735663024063,1.46979632,711.09,709.55,1.04936077]
[1735663024263,0.25894912,711.08,709.55,1.04936077]
[1735663024863,0.25892662,711.07,709.55,1.04936077]
[1735663025063,0.25892662,711.06,709.65,1.04936077]
[1735663025263,1.46979632,711.09,709.65,1.04936077]
[1735663025461,0.25893213,711.08,709.65,1.04936077]
[1735663026065,0.25893213,711.08,709.69,1.04936077]
[1735663027260,0.25893236,711.07,709.74,1.04936077]
[1735663027463,0.25893236,711.06,709.74,1.04936077]
[1735663027660,0.25893236,711.05,709.74,1.04936077]
[1735663027865,0.25893236,711.04,709.74,1.04936077]
[1735663028060,0.25893236,711.08,709.74,1.04936077]
[1735663028265,0.25893236,711.07,709.74,1.04936077]
[1735663028460,0.25893236,711.08,709.74,1.04936077]
[1735663028659,0.25893236,711.08,709.43,0.28191646]
[1735663028660,0.25893236,711.07,709.69,1.04936077]
[1735663028862,0.25893236,711.06,709.69,1.04936077]
[1735663029059,0.25893236,711.08,709.69,1.04936077]
[1735663029263,0.54022259,711.07,709.69,1.04936077]
[1735663029464,0.25895633,711.06,709.72,1.04936077]
[1735663029966,0.25897299,711.05,709.72,1.04936077]
[1735663030168,0.28127812,711.04,709.72,1.04936077]
[1735663030360,0.25897299,711.03,709.72,1.04936077]
[1735663030766,0.25897299,711.03,709.66,1.04936077]
[1735663031463,0.28128603,711.02,709.66,1.04936077]
[1735663031663,0.25897299,711.01,709.65,1.04936077]
[1735663032463,0.28128603,711.02,709.65,1.04936077]
[1735663032660,0.25897452,711.01,709.65,1.04936077]
[1735663032860,0.25897452,711.01,709.43,0.28191646]
[1735663032861,0.25897452,711.01,709.6,1.04936077]
[1735663033264,1.46986875,711.0,709.6,1.04936077]
[1735663033462,0.25897452,710.99,709.6,1.04936077]
[1735663034064,0.25897452,710.99,709.43,0.28191646]
[1735663034065,0.25897452,710.99,709.67,1.04936077]
[1735663034964,0.25897452,710.99,709.65,1.04936077]
[1735663035164,0.25897902,710.98,709.65,1.04936077]
[1735663035461,0.25897902,710.97,709.65,1.04936077]
[1735663035666,0.25897902,710.96,709.65,1.04936077]
[1735663035862,1.46986875,711.0,709.63,1.04936077]
[1735663036068,0.2590339,710.99,709.63,1.04936077]
[1735663037268,0.2590339,710.99,709.43,0.28191646]
[1735663037269,1.30316686,710.99,709.43,0.28191646]
[1735663037466,0.2590339,710.98,709.43,0.28191646]
[1735663037868,0.25906256,710.97,709.43,0.28191646]
[1735663038069,0.25906256,710.96,709.43,0.28191646]
[1735663038271,1.04413296,710.86,709.46,1.04936077]
[1735663038465,0.25906256,710.85,709.46,1.04936077]
[1735663039375,0.25906256,710.85,709.43,0.28191646]
[1735663039565,0.25906256,710.84,709.43,0.28191646]
[1735663039871,0.25906256,710.83,709.43,0.28191646]
[1735663040072,0.25906256,710.82,709.43,0.28191646]
[1735663040272,1.04413296,710.94,709.43,0.28191646]
[1735663040475,0.25905891,710.93,709.43,0.28191646]
[1735663040674,0.25905891,710.92,709.43,0.28191646]
[1735663040867,0.25905891,710.91,709.43,0.28191646]
[1735663041071,0.25905891,710.9,709.43,0.28191646]
[1735663041274,2.51400171,711.0,709.43,0.28191646]
[1735663041275,0.25905891,710.89,709.43,0.28191646]
[1735663041474,0.25905891,710.88,709.43,0.28191646]
[1735663041675,0.25905891,710.87,709.43,0.28191646]
[1735663041875,0.25905891,710.86,709.43,0.28191646]
[1735663042075,0.25905891,710.85,709.43,0.28191646]
[1735663042273,0.25905891,710.84,709.43,0.28191646]
[1735663042476,0.25905891,710.99,709.43,0.28191646]
[1735663042771,0.25905891,710.98,709.43,0.28191646]
[1735663043071,0.54036473,710.97,709.43,0.28191646]
[1735663043269,0.25905891,710.96,709.43,0.28191646]
[1735663043474,0.54036868,710.96,709.43,0.28191646]
[1735663043673,0.25905454,710.95,709.43,0.28191646]
[1735663044075,0.28131769,710.94,709.43,0.28191646]
[1735663044275,0.25905454,710.93,709.43,0.28191646]
[1735663044671,0.2813256,710.92,709.43,0.28191646]
[1735663044871,0.25905454,710.91,709.43,0.28191646]
[1735663045576,1.75161871,710.92,709.43,0.28191646]
[1735663045774,0.25905393,710.91,709.43,0.28191646]
[1735663045970,0.28133352,710.9,709.43,0.28191646]
[1735663046275,0.25905393,710.89,709.43,0.28191646]
[1735663046976,0.28134143,710.88,709.43,0.28191646]
[1735663047276,0.25905393,710.87,709.43,0.28191646]
[1735663047676,0.28134935,710.86,709.43,0.28191646]
[1735663047876,0.25905393,710.85,709.43,0.28191646]
[1735663048269,0.54040213,710.84,709.43,0.28191646]
[1735663048473,0.25904487,710.83,709.43,0.28191646]
[1735663049175,0.28136518,710.82,709.43,0.28191646]
[1735663049375,0.25904487,710.81,709.43,0.28191646]
[1735663050776,0.25903691,710.8,709.43,0.28191646]
[1735663051082,0.25903691,710.79,709.43,0.28191646]
[1735663051269,0.25903691,710.78,709.43,0.28191646]
[1735663051475,0.25903598,710.77,709.43,0.28191646]
[1735663051778,0.25903598,710.76,709.43,0.28191646]
[1735663051971,0.25903598,710.75,709.43,0.28191646]
[1735663052171,0.25903598,710.74,709.43,0.28191646]
[1735663052379,0.25903598,710.81,709.43,0.28191646]
[1735663052674,0.28136518,710.82,709.43,0.28191646]
[1735663052978,0.2590357,710.81,709.43,0.28191646]
[1735663053680,0.28136518,710.82,709.43,0.28191646]
[1735663055274,1.72928187,710.81,709.43,0.28191646]
[1735663055482,1.47024652,710.81,709.43,0.28191646]
[1735663058782,1.47024652,710.81,709.57,1.04936077]
[1735663059982,1.47024652,710.81,709.63,1.04936077]
[1735663060881,1.47024652,710.81,709.43,0.28191646]
[1735663060882,0.25901287,710.8,709.59,1.04936077]
[1735663061382,0.25901254,710.79,709.59,1.04936077]
[1735663061582,0.25901254,710.8,709.59,1.04936077]
[1735663061882,1.47024652,710.81,709.59,1.04936077]
[1735663062082,1.47024652,710.81,709.64,1.04936077]
[1735663062879,1.47024652,710.81,709.58,1.04936077]
[1735663064183,1.47024652,710.81,709.6,1.04936077]
[1735663067685,1.47024652,710.81,709.61,1.04936077]
[1735663068687,1.47024652,710.81,709.67,1.04936077]
[1735663069982,1.47024652,710.81,709.43,0.28191646]
[1735663069983,1.47024652,710.81,709.65,1.04936077]
[1735663071887,0.25898827,710.8,709.65,1.04936077]
[1735663073289,0.25901565,710.79,709.65,1.04936077]
[1735663073488,0.25901565,710.78,709.65,1.04936077]
[1735663073693,0.25901565,710.77,709.74,1.04936077]
[1735663073891,0.25901565,710.76,709.74,1.04936077]
[1735663074091,0.25901565,710.75,709.74,1.04936077]
[1735663074294,1.47024652,710.81,709.74,1.04936077]
[1735663074486,0.25903417,710.74,709.74,1.04936077]
[1735663074691,0.25903417,710.73,709.74,1.04936077]
[1735663074891,0.28136518,710.82,709.74,1.04936077]
[1735663075193,1.47009125,710.72,709.57,1.04936077]
[1735663075394,0.28136518,710.82,709.57,1.04936077]
[1735663075594,1.47022581,710.71,709.57,1.04936077]
[1735663075892,0.28136518,710.82,709.57,1.04936077]
[1735663076086,0.25901376,710.81,709.57,1.04936077]
[1735663076288,0.25901376,710.81,709.61,1.04936077]
[1735663076992,0.28136518,710.82,709.61,1.04936077]
[1735663077288,1.47015335,710.8,709.63,1.04936077]
[1735663077489,0.25901693,710.79,709.63,1.04936077]
[1735663077689,1.47015335,710.8,709.63,1.04936077]
[1735663078090,0.25903792,710.79,709.63,1.04936077]
[1735663078287,0.25903792,710.79,709.54,1.04936077]
[1735663078587,1.47015335,710.8,709.54,1.04936077]
[1735663078791,0.25904026,710.79,709.54,1.04936077]
[1735663079598,1.47015335,710.8,709.53,1.04936077]
[1735663079900,0.25903992,710.79,709.53,1.04936077]
[1735663080792,0.25903992,710.79,709.58,1.04936077]
[1735663081499,0.25904386,710.78,709.56,1.04936077]
[1735663081796,0.25904386,710.77,709.56,1.04936077]
[1735663081997,0.25904386,710.76,709.56,1.04936077]
[1735663082190,0.25904386,710.79,709.56,1.04936077]
[1735663082391,0.25904386,710.78,709.56,1.04936077]
[1735663082594,0.25904386,710.77,709.56,1.04936077]
[1735663082794,1.47015335,710.8,709.56,1.04936077]
[1735663082995,0.25902829,710.79,709.56,1.04936077]
[1735663083991,0.25902829,710.79,709.43,0.28191646]
[1735663083992,0.25902829,710.79,709.6,1.04936077]
[1735663084197,0.25902488,710.78,709.6,1.04936077]
[1735663084496,0.25902488,710.77,709.6,1.04936077]
[1735663084696,0.25902488,710.76,709.6,1.04936077]
[1735663084899,0.25902488,710.75,709.59,1.04936077]
[1735663085096,0.25902488,710.74,709.59,1.04936077]
[1735663085300,0.25902488,710.73,709.59,1.04936077]
[1735663085598,1.47015335,710.8,709.59,1.04936077]